{"text_format":"3","workbook":"xlsx","n_sheets":4,"sheets":["Informācijas panelis","Budžets","Iestatīšana","diagrammas dati"],"not_rendered":{"charts":2,"images":1,"external_links":1,"defined_names":42},"read":"whole","date_system":"1900"}

{"sheet":"Informācijas panelis","index":0,"n_rows":13,"n_cols":14,"rows_kept":13,"merged":[[2,0,4,2],[6,0,8,2],[10,0,12,2]]}
[{"$nulls":13},{"$f":"BudžetaNosaukums&\" INTERAKTĪVAIS BUDŽETS\"","v":"KALNIŅU ĢIMENE 2012. G. INTERAKTĪVAIS BUDŽETS"}]
[]
[{"$f":"'diagrammas dati'!C38","v":{"v":4222,"d":"4,222 €"}}]
[]
[{"$nulls":3},"ienākumi"]
[]
[{"$f":"'diagrammas dati'!C39","v":{"v":7936,"d":"7,936 €"}}]
[]
[{"$nulls":3},"izdevumi"]
[]
[{"$f":"TEXT('diagrammas dati'!D40&'diagrammas dati'!C40,\"# ###\"\" \"\"€\")","v":"-3 714 €"}]
[]
[{"$nulls":3},"naudas plūsma"]

{"sheet":"Budžets","index":1,"n_rows":132,"n_cols":16,"rows_kept":132,"merged":[[18,1,18,13],[27,1,27,13],[36,1,36,13],[45,1,45,13],[54,1,54,13],[61,1,61,13],[68,1,68,13],[75,1,75,13],[82,1,82,13],[89,1,89,13],[96,1,96,13],[103,1,103,13],[110,1,110,13],[118,1,118,13],[125,1,125,13]]}
[null,null,"jan","feb","mar","apr","mai","jūn","jūl","aug","sep","okt","nov","dec","gads","vid"]
[]
[]
[]
[null,"Sākuma bilance",1000]
[null,"Kopējie ienākumi",{"$f":"SUM(tabulaIenākumi[jan])","v":4222},{"$f":"SUM(tabulaIenākumi[feb])","v":9033},{"$f":"SUM(tabulaIenākumi[mar])","v":4000},{"$f":"SUM(tabulaIenākumi[apr])","v":4045},{"$f":"SUM(tabulaIenākumi[mai])","v":9000},{"$f":"SUM(tabulaIenākumi[jūn])","v":1525},{"$f":"SUM(tabulaIenākumi[jūl])","v":1500},{"$f":"SUM(tabulaIenākumi[aug])","v":6500},{"$f":"SUM(tabulaIenākumi[sep])","v":4000},{"$f":"SUM(tabulaIenākumi[okt])","v":4000},{"$f":"SUM(tabulaIenākumi[nov])","v":9000},{"$f":"SUM(tabulaIenākumi[dec])","v":4000},{"$f":"SUM(tabulaIenākumi[gads])","v":60825},{"$f":"O6/12","v":{"v":5068.75,"d":"5069"}}]
[null,"Kopējie izdevumi",{"$f":"SUM(tabulaIzdevumuKategorija_01[jan],tabulaIzdevumuKategorija_02[jan],tabulaIzdevumuKategorija_03[jan],tabulaIzdevumuKategorija_04[jan],tabulaIzdevumuKategorija_05[jan],tabulaIzdevumuKategorija_06[jan],tabulaIzdevumuKategorija_07[jan],tabulaIzdevumuKategorija_08[jan],tabulaIzdevumuKategorija_09[jan],tabulaIzdevumuKategorija_10[jan],tabulaIzdevumuKategorija_11[jan],tabulaIzdevumuKategorija_12[jan],tabulaIzdevumuKategorija_13[jan],tabulaIzdevumuKategorija_14[jan],tabulaIzdevumuKategorija_16[jan])","v":7936},{"$f":"SUM(tabulaIzdevumuKategorija_01[feb],tabulaIzdevumuKategorija_02[feb],tabulaIzdevumuKategorija_03[feb],tabulaIzdevumuKategorija_04[feb],tabulaIzdevumuKategorija_05[feb],tabulaIzdevumuKategorija_06[feb],tabulaIzdevumuKategorija_07[feb],tabulaIzdevumuKategorija_08[feb],tabulaIzdevumuKategorija_09[feb],tabulaIzdevumuKategorija_10[feb],tabulaIzdevumuKategorija_11[feb],tabulaIzdevumuKategorija_12[feb],tabulaIzdevumuKategorija_13[feb],tabulaIzdevumuKategorija_14[feb],tabulaIzdevumuKategorija_16[feb])","v":5243},{"$f":"SUM(tabulaIzdevumuKategorija_01[mar],tabulaIzdevumuKategorija_02[mar],tabulaIzdevumuKategorija_03[mar],tabulaIzdevumuKategorija_04[mar],tabulaIzdevumuKategorija_05[mar],tabulaIzdevumuKategorija_06[mar],tabulaIzdevumuKategorija_07[mar],tabulaIzdevumuKategorija_08[mar],tabulaIzdevumuKategorija_09[mar],tabulaIzdevumuKategorija_10[mar],tabulaIzdevumuKategorija_11[mar],tabulaIzdevumuKategorija_12[mar],tabulaIzdevumuKategorija_13[mar],tabulaIzdevumuKategorija_14[mar],tabulaIzdevumuKategorija_16[mar])","v":5933},{"$f":"SUM(tabulaIzdevumuKategorija_01[apr],tabulaIzdevumuKategorija_02[apr],tabulaIzdevumuKategorija_03[apr],tabulaIzdevumuKategorija_04[apr],tabulaIzdevumuKategorija_05[apr],tabulaIzdevumuKategorija_06[apr],tabulaIzdevumuKategorija_07[apr],tabulaIzdevumuKategorija_08[apr],tabulaIzdevumuKategorija_09[apr],tabulaIzdevumuKategorija_10[apr],tabulaIzdevumuKategorija_11[apr],tabulaIzdevumuKategorija_12[apr],tabulaIzdevumuKategorija_13[apr],tabulaIzdevumuKategorija_14[apr],tabulaIzdevumuKategorija_16[apr])","v":5858},{"$f":"SUM(tabulaIzdevumuKategorija_01[mai],tabulaIzdevumuKategorija_02[mai],tabulaIzdevumuKategorija_03[mai],tabulaIzdevumuKategorija_04[mai],tabulaIzdevumuKategorija_05[mai],tabulaIzdevumuKategorija_06[mai],tabulaIzdevumuKategorija_07[mai],tabulaIzdevumuKategorija_08[mai],tabulaIzdevumuKategorija_09[mai],tabulaIzdevumuKategorija_10[mai],tabulaIzdevumuKategorija_11[mai],tabulaIzdevumuKategorija_12[mai],tabulaIzdevumuKategorija_13[mai],tabulaIzdevumuKategorija_14[mai],tabulaIzdevumuKategorija_16[mai])","v":5468},{"$f":"SUM(tabulaIzdevumuKategorija_01[jūn],tabulaIzdevumuKategorija_02[jūn],tabulaIzdevumuKategorija_03[jūn],tabulaIzdevumuKategorija_04[jūn],tabulaIzdevumuKategorija_05[jūn],tabulaIzdevumuKategorija_06[jūn],tabulaIzdevumuKategorija_07[jūn],tabulaIzdevumuKategorija_08[jūn],tabulaIzdevumuKategorija_09[jūn],tabulaIzdevumuKategorija_10[jūn],tabulaIzdevumuKategorija_11[jūn],tabulaIzdevumuKategorija_12[jūn],tabulaIzdevumuKategorija_13[jūn],tabulaIzdevumuKategorija_14[jūn],tabulaIzdevumuKategorija_16[jūn])","v":5118},{"$f":"SUM(tabulaIzdevumuKategorija_01[jūl],tabulaIzdevumuKategorija_02[jūl],tabulaIzdevumuKategorija_03[jūl],tabulaIzdevumuKategorija_04[jūl],tabulaIzdevumuKategorija_05[jūl],tabulaIzdevumuKategorija_06[jūl],tabulaIzdevumuKategorija_07[jūl],tabulaIzdevumuKategorija_08[jūl],tabulaIzdevumuKategorija_09[jūl],tabulaIzdevumuKategorija_10[jūl],tabulaIzdevumuKategorija_11[jūl],tabulaIzdevumuKategorija_12[jūl],tabulaIzdevumuKategorija_13[jūl],tabulaIzdevumuKategorija_14[jūl],tabulaIzdevumuKategorija_16[jūl])","v":5743},{"$f":"SUM(tabulaIzdevumuKategorija_01[aug],tabulaIzdevumuKategorija_02[aug],tabulaIzdevumuKategorija_03[aug],tabulaIzdevumuKategorija_04[aug],tabulaIzdevumuKategorija_05[aug],tabulaIzdevumuKategorija_06[aug],tabulaIzdevumuKategorija_07[aug],tabulaIzdevumuKategorija_08[aug],tabulaIzdevumuKategorija_09[aug],tabulaIzdevumuKategorija_10[aug],tabulaIzdevumuKategorija_11[aug],tabulaIzdevumuKategorija_12[aug],tabulaIzdevumuKategorija_13[aug],tabulaIzdevumuKategorija_14[aug],tabulaIzdevumuKategorija_16[aug])","v":5353},{"$f":"SUM(tabulaIzdevumuKategorija_01[sep],tabulaIzdevumuKategorija_02[sep],tabulaIzdevumuKategorija_03[sep],tabulaIzdevumuKategorija_04[sep],tabulaIzdevumuKategorija_05[sep],tabulaIzdevumuKategorija_06[sep],tabulaIzdevumuKategorija_07[sep],tabulaIzdevumuKategorija_08[sep],tabulaIzdevumuKategorija_09[sep],tabulaIzdevumuKategorija_10[sep],tabulaIzdevumuKategorija_11[sep],tabulaIzdevumuKategorija_12[sep],tabulaIzdevumuKategorija_13[sep],tabulaIzdevumuKategorija_14[sep],tabulaIzdevumuKategorija_16[sep])","v":5983},{"$f":"SUM(tabulaIzdevumuKategorija_01[okt],tabulaIzdevumuKategorija_02[okt],tabulaIzdevumuKategorija_03[okt],tabulaIzdevumuKategorija_04[okt],tabulaIzdevumuKategorija_05[okt],tabulaIzdevumuKategorija_06[okt],tabulaIzdevumuKategorija_07[okt],tabulaIzdevumuKategorija_08[okt],tabulaIzdevumuKategorija_09[okt],tabulaIzdevumuKategorija_10[okt],tabulaIzdevumuKategorija_11[okt],tabulaIzdevumuKategorija_12[okt],tabulaIzdevumuKategorija_13[okt],tabulaIzdevumuKategorija_14[okt],tabulaIzdevumuKategorija_16[okt])","v":5943},{"$f":"SUM(tabulaIzdevumuKategorija_01[nov],tabulaIzdevumuKategorija_02[nov],tabulaIzdevumuKategorija_03[nov],tabulaIzdevumuKategorija_04[nov],tabulaIzdevumuKategorija_05[nov],tabulaIzdevumuKategorija_06[nov],tabulaIzdevumuKategorija_07[nov],tabulaIzdevumuKategorija_08[nov],tabulaIzdevumuKategorija_09[nov],tabulaIzdevumuKategorija_10[nov],tabulaIzdevumuKategorija_11[nov],tabulaIzdevumuKategorija_12[nov],tabulaIzdevumuKategorija_13[nov],tabulaIzdevumuKategorija_14[nov],tabulaIzdevumuKategorija_16[nov])","v":5058},{"$f":"SUM(tabulaIzdevumuKategorija_01[dec],tabulaIzdevumuKategorija_02[dec],tabulaIzdevumuKategorija_03[dec],tabulaIzdevumuKategorija_04[dec],tabulaIzdevumuKategorija_05[dec],tabulaIzdevumuKategorija_06[dec],tabulaIzdevumuKategorija_07[dec],tabulaIzdevumuKategorija_08[dec],tabulaIzdevumuKategorija_09[dec],tabulaIzdevumuKategorija_10[dec],tabulaIzdevumuKategorija_11[dec],tabulaIzdevumuKategorija_12[dec],tabulaIzdevumuKategorija_13[dec],tabulaIzdevumuKategorija_14[dec],tabulaIzdevumuKategorija_16[dec])","v":4958},{"$f":"SUM(tabulaIzdevumuKategorija_01[gads],tabulaIzdevumuKategorija_02[gads],tabulaIzdevumuKategorija_03[gads],tabulaIzdevumuKategorija_04[gads],tabulaIzdevumuKategorija_05[gads],tabulaIzdevumuKategorija_06[gads],tabulaIzdevumuKategorija_07[gads],tabulaIzdevumuKategorija_08[gads],tabulaIzdevumuKategorija_09[gads],tabulaIzdevumuKategorija_10[gads],tabulaIzdevumuKategorija_11[gads],tabulaIzdevumuKategorija_12[gads],tabulaIzdevumuKategorija_13[gads],tabulaIzdevumuKategorija_14[gads],tabulaIzdevumuKategorija_16[gads])","v":68594},{"$f":"O7/12","v":{"v":5716.166666666667,"d":"5716"}}]
[null,"Neto ienākumi",{"$f":"C6-C7","v":-3714},{"$f":"D6-D7","v":3790},-1933,{"$f":"F6-F7","v":-1813},3532,-3593,-4243,1147,-1983,-1943,3942,-958,{"$f":"O6-O7","v":-7769},{"v":-647.4166666666666,"d":"-647"}]
[null,"KOPĒJĀ NAUDAS PLŪSMA",{"$f":"C5+C6-C7","v":-2714},{"$f":"C9+D6-D7","v":1076},{"$f":"D9+E6-E7","v":-857},{"$f":"E9+F6-F7","v":-2670},{"$f":"F9+G6-G7","v":862},{"$f":"G9+H6-H7","v":-2731},{"$f":"H9+I6-I7","v":-6974},{"$f":"I9+J6-J7","v":-5827},{"$f":"J9+K6-K7","v":-7810},{"$f":"K9+L6-L7","v":-9753},{"$f":"L9+M6-M7","v":-5811},{"$f":"M9+N6-N7","v":-6769}]
[]
[]
[null,"ienākumi"]
[null,"Algas un dzeramnaudas",4000,4000,4000,4000,4000,1000,1000,1000,4000,4000,4000,4000,{"$f":"SUM(tabulaIenākumi[[#This Row],[jan]:[dec]])","v":39000},{"$f":"tabulaIenākumi[[#This Row],[gads]]/12","v":3250}]
[null,"Procentu ienākumi",222,33,null,45,null,25,{"$nulls":6},{"$f":"SUM(tabulaIenākumi[[#This Row],[jan]:[dec]])","v":325},{"$f":"tabulaIenākumi[[#This Row],[gads]]/12","v":{"v":27.083333333333332,"d":"27"}}]
[null,"Dividendes",null,5000,null,null,5000,null,null,5000,null,null,5000,null,{"$f":"SUM(tabulaIenākumi[[#This Row],[jan]:[dec]])","v":20000},{"$f":"tabulaIenākumi[[#This Row],[gads]]/12","v":{"v":1666.6666666666667,"d":"1667"}}]
[null,"atmaksas/kompensācijas",{"$nulls":5},500,500,500,{"$nulls":4},{"$f":"SUM(tabulaIenākumi[[#This Row],[jan]:[dec]])","v":1500},{"$f":"tabulaIenākumi[[#This Row],[gads]]/12","v":125}]
[null,"Cits",{"$nulls":12},{"$f":"SUM(tabulaIenākumi[[#This Row],[jan]:[dec]])","v":0},{"$f":"tabulaIenākumi[[#This Row],[gads]]/12","v":0}]
[null,"KOPĒJIE IENĀKUMI",{"$f":"SUM(tabulaIenākumi[jan])","v":4222},{"$f":"SUM(tabulaIenākumi[feb])","v":9033},{"$f":"SUM(tabulaIenākumi[mar])","v":4000},{"$f":"SUM(tabulaIenākumi[apr])","v":4045},{"$f":"SUM(tabulaIenākumi[mai])","v":9000},{"$f":"SUM(tabulaIenākumi[jūn])","v":1525},{"$f":"SUM(tabulaIenākumi[jūl])","v":1500},{"$f":"SUM(tabulaIenākumi[aug])","v":6500},{"$f":"SUM(tabulaIenākumi[sep])","v":4000},{"$f":"SUM(tabulaIenākumi[okt])","v":4000},{"$f":"SUM(tabulaIenākumi[nov])","v":9000},{"$f":"SUM(tabulaIenākumi[dec])","v":4000},{"$f":"SUM(tabulaIenākumi[gads])","v":60825},{"$f":"tabulaIenākumi[[#Totals],[gads]]/12","v":{"v":5068.75,"d":"5069"}}]
[]
[]
[null,"mājoklis"]
[null,"Hipotēka/īre",850,850,850,850,850,850,850,850,850,850,900,900,{"$f":"SUM(tabulaIzdevumuKategorija_01[[#This Row],[jan]:[dec]])","v":10300},{"$f":"tabulaIzdevumuKategorija_01[[#This Row],[gads]]/12","v":{"v":858.3333333333334,"d":"858"}}]
[null,"Elektrība",200,200,175,150,150,175,225,275,200,150,150,150,{"$f":"SUM(tabulaIzdevumuKategorija_01[[#This Row],[jan]:[dec]])","v":2200},{"$f":"tabulaIzdevumuKategorija_01[[#This Row],[gads]]/12","v":{"v":183.33333333333334,"d":"183"}}]
[null,"Tālrunis",50,50,100,100,50,50,100,100,50,50,50,50,{"$f":"SUM(tabulaIzdevumuKategorija_01[[#This Row],[jan]:[dec]])","v":800},{"$f":"tabulaIzdevumuKategorija_01[[#This Row],[gads]]/12","v":{"v":66.66666666666667,"d":"67"}}]
[null,"Kabelis/satelīts",69,69,69,69,69,69,69,69,69,69,69,69,{"$f":"SUM(tabulaIzdevumuKategorija_01[[#This Row],[jan]:[dec]])","v":828},{"$f":"tabulaIzdevumuKategorija_01[[#This Row],[gads]]/12","v":69}]
[null,"Internets",39,39,39,39,39,39,39,39,39,39,39,39,{"$f":"SUM(tabulaIzdevumuKategorija_01[[#This Row],[jan]:[dec]])","v":468},{"$f":"tabulaIzdevumuKategorija_01[[#This Row],[gads]]/12","v":39}]
[null,{"$f":"UPPER(\"Kopā \" & B21)","v":"KOPĀ MĀJOKLIS"},{"$f":"SUM(tabulaIzdevumuKategorija_01[jan])","v":1208},{"$f":"SUM(tabulaIzdevumuKategorija_01[feb])","v":1208},{"$f":"SUM(tabulaIzdevumuKategorija_01[mar])","v":1233},{"$f":"SUM(tabulaIzdevumuKategorija_01[apr])","v":1208},{"$f":"SUM(tabulaIzdevumuKategorija_01[mai])","v":1158},{"$f":"SUM(tabulaIzdevumuKategorija_01[jūn])","v":1183},{"$f":"SUM(tabulaIzdevumuKategorija_01[jūl])","v":1283},{"$f":"SUM(tabulaIzdevumuKategorija_01[aug])","v":1333},{"$f":"SUM(tabulaIzdevumuKategorija_01[sep])","v":1208},{"$f":"SUM(tabulaIzdevumuKategorija_01[okt])","v":1158},{"$f":"SUM(tabulaIzdevumuKategorija_01[nov])","v":1208},{"$f":"SUM(tabulaIzdevumuKategorija_01[dec])","v":1208},{"$f":"SUM(tabulaIzdevumuKategorija_01[gads])","v":14596},{"$f":"tabulaIzdevumuKategorija_01[[#Totals],[gads]]/12","v":{"v":1216.3333333333333,"d":"1216"}}]
[]
[]
[null,"ikdienas tēriņi"]
[null,"Pārtika",345,250,200,400,350,250,400,350,250,400,350,250,{"$f":"SUM(tabulaIzdevumuKategorija_02[[#This Row],[jan]:[dec]])","v":3795},{"$f":"tabulaIzdevumuKategorija_02[[#This Row],[gads]]/12","v":{"v":316.25,"d":"316"}}]
[null,"Apģērbs",300,null,null,300,null,null,300,null,null,300,null,null,{"$f":"SUM(tabulaIzdevumuKategorija_02[[#This Row],[jan]:[dec]])","v":1200},{"$f":"tabulaIzdevumuKategorija_02[[#This Row],[gads]]/12","v":100}]
[null,"Ēdienreizes ārpus mājām",125,125,300,125,125,200,125,125,125,125,125,125,{"$f":"SUM(tabulaIzdevumuKategorija_02[[#This Row],[jan]:[dec]])","v":1750},{"$f":"tabulaIzdevumuKategorija_02[[#This Row],[gads]]/12","v":{"v":145.83333333333334,"d":"146"}}]
[null,"Frizieris",25,null,50,null,25,null,50,null,25,null,100,null,{"$f":"SUM(tabulaIzdevumuKategorija_02[[#This Row],[jan]:[dec]])","v":275},{"$f":"tabulaIzdevumuKategorija_02[[#This Row],[gads]]/12","v":{"v":22.916666666666668,"d":"23"}}]
[null,"Cits",{"$nulls":12},{"$f":"SUM(tabulaIzdevumuKategorija_02[[#This Row],[jan]:[dec]])","v":0},{"$f":"tabulaIzdevumuKategorija_02[[#This Row],[gads]]/12","v":0}]
[null,{"$f":"UPPER(\"Kopā \" & B30)","v":"KOPĀ IKDIENAS TĒRIŅI"},{"$f":"SUM(tabulaIzdevumuKategorija_02[jan])","v":795},{"$f":"SUM(tabulaIzdevumuKategorija_02[feb])","v":375},{"$f":"SUM(tabulaIzdevumuKategorija_02[mar])","v":550},{"$f":"SUM(tabulaIzdevumuKategorija_02[apr])","v":825},{"$f":"SUM(tabulaIzdevumuKategorija_02[mai])","v":500},{"$f":"SUM(tabulaIzdevumuKategorija_02[jūn])","v":450},{"$f":"SUM(tabulaIzdevumuKategorija_02[jūl])","v":875},{"$f":"SUM(tabulaIzdevumuKategorija_02[aug])","v":475},{"$f":"SUM(tabulaIzdevumuKategorija_02[sep])","v":400},{"$f":"SUM(tabulaIzdevumuKategorija_02[okt])","v":825},{"$f":"SUM(tabulaIzdevumuKategorija_02[nov])","v":575},{"$f":"SUM(tabulaIzdevumuKategorija_02[dec])","v":375},{"$f":"SUM(tabulaIzdevumuKategorija_02[gads])","v":7020},{"$f":"tabulaIzdevumuKategorija_02[[#Totals],[gads]]/12","v":585}]
[]
[]
[null,"bērni"]
[null,"Materiāli skolai",123,null,100,{"$nulls":4},345,{"$nulls":4},{"$f":"SUM(tabulaIzdevumuKategorija_03[[#This Row],[jan]:[dec]])","v":568},{"$f":"tabulaIzdevumuKategorija_03[[#This Row],[gads]]/12","v":{"v":47.333333333333336,"d":"47"}}]
[null,"Apģērbs",null,100,null,null,100,{"$nulls":3},100,null,null,100,{"$f":"SUM(tabulaIzdevumuKategorija_03[[#This Row],[jan]:[dec]])","v":400},{"$f":"tabulaIzdevumuKategorija_03[[#This Row],[gads]]/12","v":{"v":33.333333333333336,"d":"33"}}]
[null,"Pusdienas skolā",50,50,50,50,50,50,null,null,50,50,50,50,{"$f":"SUM(tabulaIzdevumuKategorija_03[[#This Row],[jan]:[dec]])","v":500},{"$f":"tabulaIzdevumuKategorija_03[[#This Row],[gads]]/12","v":{"v":41.666666666666664,"d":"42"}}]
[null,"Medicīna",200,200,200,200,200,200,200,200,200,200,200,200,{"$f":"SUM(tabulaIzdevumuKategorija_03[[#This Row],[jan]:[dec]])","v":2400},{"$f":"tabulaIzdevumuKategorija_03[[#This Row],[gads]]/12","v":200}]
[null,"Cits",2000,150,{"$nulls":3},200,{"$nulls":3},100,null,null,{"$f":"SUM(tabulaIzdevumuKategorija_03[[#This Row],[jan]:[dec]])","v":2450},{"$f":"tabulaIzdevumuKategorija_03[[#This Row],[gads]]/12","v":{"v":204.16666666666666,"d":"204"}}]
[null,{"$f":"UPPER(\"Kopā \" & B39)","v":"KOPĀ BĒRNI"},{"$f":"SUM(tabulaIzdevumuKategorija_03[jan])","v":2373},{"$f":"SUM(tabulaIzdevumuKategorija_03[feb])","v":500},{"$f":"SUM(tabulaIzdevumuKategorija_03[mar])","v":350},{"$f":"SUM(tabulaIzdevumuKategorija_03[apr])","v":250},{"$f":"SUM(tabulaIzdevumuKategorija_03[mai])","v":350},{"$f":"SUM(tabulaIzdevumuKategorija_03[jūn])","v":450},{"$f":"SUM(tabulaIzdevumuKategorija_03[jūl])","v":200},{"$f":"SUM(tabulaIzdevumuKategorija_03[aug])","v":545},{"$f":"SUM(tabulaIzdevumuKategorija_03[sep])","v":350},{"$f":"SUM(tabulaIzdevumuKategorija_03[okt])","v":350},{"$f":"SUM(tabulaIzdevumuKategorija_03[nov])","v":250},{"$f":"SUM(tabulaIzdevumuKategorija_03[dec])","v":350},{"$f":"SUM(tabulaIzdevumuKategorija_03[gads])","v":6318},{"$f":"tabulaIzdevumuKategorija_03[[#Totals],[gads]]/12","v":{"v":526.5,"d":"527"}}]
[]
[]
[null,"transports"]
[null,"Maksājumi par transportlīdzekli",600,600,600,600,600,600,600,600,600,600,600,600,{"$f":"SUM(tabulaIzdevumuKategorija_04[[#This Row],[jan]:[dec]])","v":7200},{"$f":"tabulaIzdevumuKategorija_04[[#This Row],[gads]]/12","v":600}]
[null,"Degviela",325,325,325,325,325,500,500,500,325,325,325,325,{"$f":"SUM(tabulaIzdevumuKategorija_04[[#This Row],[jan]:[dec]])","v":4425},{"$f":"tabulaIzdevumuKategorija_04[[#This Row],[gads]]/12","v":{"v":368.75,"d":"369"}}]
[null,"Remonts",null,100,null,100,null,100,null,100,null,100,null,null,{"$f":"SUM(tabulaIzdevumuKategorija_04[[#This Row],[jan]:[dec]])","v":500},{"$f":"tabulaIzdevumuKategorija_04[[#This Row],[gads]]/12","v":{"v":41.666666666666664,"d":"42"}}]
[null,"Reģistrēšana/licence",185,{"$nulls":7},225,{"$nulls":3},{"$f":"SUM(tabulaIzdevumuKategorija_04[[#This Row],[jan]:[dec]])","v":410},{"$f":"tabulaIzdevumuKategorija_04[[#This Row],[gads]]/12","v":{"v":34.166666666666664,"d":"34"}}]
[null,"Cits",{"$nulls":4},400,{"$nulls":7},{"$f":"SUM(tabulaIzdevumuKategorija_04[[#This Row],[jan]:[dec]])","v":400},{"$f":"tabulaIzdevumuKategorija_04[[#This Row],[gads]]/12","v":{"v":33.333333333333336,"d":"33"}}]
[null,{"$f":"UPPER(\"Kopā \" & B48)","v":"KOPĀ TRANSPORTS"},{"$f":"SUM(tabulaIzdevumuKategorija_04[jan])","v":1110},{"$f":"SUM(tabulaIzdevumuKategorija_04[feb])","v":1025},{"$f":"SUM(tabulaIzdevumuKategorija_04[mar])","v":925},{"$f":"SUM(tabulaIzdevumuKategorija_04[apr])","v":1025},{"$f":"SUM(tabulaIzdevumuKategorija_04[mai])","v":1325},{"$f":"SUM(tabulaIzdevumuKategorija_04[jūn])","v":1200},{"$f":"SUM(tabulaIzdevumuKategorija_04[jūl])","v":1100},{"$f":"SUM(tabulaIzdevumuKategorija_04[aug])","v":1200},{"$f":"SUM(tabulaIzdevumuKategorija_04[sep])","v":1150},{"$f":"SUM(tabulaIzdevumuKategorija_04[okt])","v":1025},{"$f":"SUM(tabulaIzdevumuKategorija_04[nov])","v":925},{"$f":"SUM(tabulaIzdevumuKategorija_04[dec])","v":925},{"$f":"SUM(tabulaIzdevumuKategorija_04[gads])","v":12935},{"$f":"tabulaIzdevumuKategorija_04[[#Totals],[gads]]/12","v":{"v":1077.9166666666667,"d":"1078"}}]
[]
[]
[null,"veselība"]
[null,"Ārsts/zobārsts",null,35,null,null,35,35,35,null,null,35,null,null,{"$f":"SUM(tabulaIzdevumuKategorija_05[[#This Row],[jan]:[dec]])","v":175},{"$f":"tabulaIzdevumuKategorija_05[[#This Row],[gads]]/12","v":{"v":14.583333333333334,"d":"15"}}]
[null,"Zāles",25,25,25,25,25,25,25,25,25,25,25,25,{"$f":"SUM(tabulaIzdevumuKategorija_05[[#This Row],[jan]:[dec]])","v":300},{"$f":"tabulaIzdevumuKategorija_05[[#This Row],[gads]]/12","v":25}]
[null,"Cits",null,null,150,{"$nulls":5},150,{"$nulls":3},{"$f":"SUM(tabulaIzdevumuKategorija_05[[#This Row],[jan]:[dec]])","v":300},{"$f":"tabulaIzdevumuKategorija_05[[#This Row],[gads]]/12","v":25}]
[null,{"$f":"UPPER(\"Kopā \" & B57)","v":"KOPĀ VESELĪBA"},{"$f":"SUM(tabulaIzdevumuKategorija_05[jan])","v":25},{"$f":"SUM(tabulaIzdevumuKategorija_05[feb])","v":60},{"$f":"SUM(tabulaIzdevumuKategorija_05[mar])","v":175},{"$f":"SUM(tabulaIzdevumuKategorija_05[apr])","v":25},{"$f":"SUM(tabulaIzdevumuKategorija_05[mai])","v":60},{"$f":"SUM(tabulaIzdevumuKategorija_05[jūn])","v":60},{"$f":"SUM(tabulaIzdevumuKategorija_05[jūl])","v":60},{"$f":"SUM(tabulaIzdevumuKategorija_05[aug])","v":25},{"$f":"SUM(tabulaIzdevumuKategorija_05[sep])","v":175},{"$f":"SUM(tabulaIzdevumuKategorija_05[okt])","v":60},{"$f":"SUM(tabulaIzdevumuKategorija_05[nov])","v":25},{"$f":"SUM(tabulaIzdevumuKategorija_05[dec])","v":25},{"$f":"SUM(tabulaIzdevumuKategorija_05[gads])","v":775},{"$f":"tabulaIzdevumuKategorija_05[[#Totals],[gads]]/12","v":{"v":64.58333333333333,"d":"65"}}]
[]
[]
[null,"apdrošināšana"]
[null,"Auto",150,150,150,150,150,150,150,150,150,150,150,150,{"$f":"SUM(tabulaIzdevumuKategorija_06[[#This Row],[jan]:[dec]])","v":1800},{"$f":"tabulaIzdevumuKategorija_06[[#This Row],[gads]]/12","v":150}]
[null,"Veselība",675,675,675,675,675,675,675,675,675,675,675,675,{"$f":"SUM(tabulaIzdevumuKategorija_06[[#This Row],[jan]:[dec]])","v":8100},{"$f":"tabulaIzdevumuKategorija_06[[#This Row],[gads]]/12","v":675}]
[null,"Dzīvība",150,150,150,150,150,150,150,150,150,150,150,150,{"$f":"SUM(tabulaIzdevumuKategorija_06[[#This Row],[jan]:[dec]])","v":1800},{"$f":"tabulaIzdevumuKategorija_06[[#This Row],[gads]]/12","v":150}]
[null,{"$f":"UPPER(\"Kopā \" & B64)","v":"KOPĀ APDROŠINĀŠANA"},{"$f":"SUM(tabulaIzdevumuKategorija_06[jan])","v":975},{"$f":"SUM(tabulaIzdevumuKategorija_06[feb])","v":975},{"$f":"SUM(tabulaIzdevumuKategorija_06[mar])","v":975},{"$f":"SUM(tabulaIzdevumuKategorija_06[apr])","v":975},{"$f":"SUM(tabulaIzdevumuKategorija_06[mai])","v":975},{"$f":"SUM(tabulaIzdevumuKategorija_06[jūn])","v":975},{"$f":"SUM(tabulaIzdevumuKategorija_06[jūl])","v":975},{"$f":"SUM(tabulaIzdevumuKategorija_06[aug])","v":975},{"$f":"SUM(tabulaIzdevumuKategorija_06[sep])","v":975},{"$f":"SUM(tabulaIzdevumuKategorija_06[okt])","v":975},{"$f":"SUM(tabulaIzdevumuKategorija_06[nov])","v":975},{"$f":"SUM(tabulaIzdevumuKategorija_06[dec])","v":975},{"$f":"SUM(tabulaIzdevumuKategorija_06[gads])","v":11700},{"$f":"tabulaIzdevumuKategorija_06[[#Totals],[gads]]/12","v":975}]
[]
[]
[null,"izglītība"]
[null,"Privātstundas",null,null,400,{"$nulls":5},400,{"$nulls":3},{"$f":"SUM(tabulaIzdevumuKategorija_07[[#This Row],[jan]:[dec]])","v":800},{"$f":"tabulaIzdevumuKategorija_07[[#This Row],[gads]]/12","v":{"v":66.66666666666667,"d":"67"}}]
[null,"Grāmatas",null,null,225,{"$nulls":5},225,{"$nulls":3},{"$f":"SUM(tabulaIzdevumuKategorija_07[[#This Row],[jan]:[dec]])","v":450},{"$f":"tabulaIzdevumuKategorija_07[[#This Row],[gads]]/12","v":{"v":37.5,"d":"38"}}]
[null,"Cits",{"$nulls":12},{"$f":"SUM(tabulaIzdevumuKategorija_07[[#This Row],[jan]:[dec]])","v":0},{"$f":"tabulaIzdevumuKategorija_07[[#This Row],[gads]]/12","v":0}]
[null,{"$f":"UPPER(\"Kopā \" & B71)","v":"KOPĀ IZGLĪTĪBA"},{"$f":"SUM(tabulaIzdevumuKategorija_07[jan])","v":0},{"$f":"SUM(tabulaIzdevumuKategorija_07[feb])","v":0},{"$f":"SUM(tabulaIzdevumuKategorija_07[mar])","v":625},{"$f":"SUM(tabulaIzdevumuKategorija_07[apr])","v":0},{"$f":"SUM(tabulaIzdevumuKategorija_07[mai])","v":0},{"$f":"SUM(tabulaIzdevumuKategorija_07[jūn])","v":0},{"$f":"SUM(tabulaIzdevumuKategorija_07[jūl])","v":0},{"$f":"SUM(tabulaIzdevumuKategorija_07[aug])","v":0},{"$f":"SUM(tabulaIzdevumuKategorija_07[sep])","v":625},{"$f":"SUM(tabulaIzdevumuKategorija_07[okt])","v":0},{"$f":"SUM(tabulaIzdevumuKategorija_07[nov])","v":0},{"$f":"SUM(tabulaIzdevumuKategorija_07[dec])","v":0},{"$f":"SUM(tabulaIzdevumuKategorija_07[gads])","v":1250},{"$f":"tabulaIzdevumuKategorija_07[[#Totals],[gads]]/12","v":{"v":104.16666666666667,"d":"104"}}]
[]
[]
[null,"labdarība"]
[null,"Pasniegtās dāvanas",null,100,{"$nulls":3},100,{"$nulls":3},100,null,null,{"$f":"SUM(tabulaIzdevumuKategorija_08[[#This Row],[jan]:[dec]])","v":300},{"$f":"tabulaIzdevumuKategorija_08[[#This Row],[gads]]/12","v":25}]
[null,"Ziedojumi labdarībai",null,null,100,null,100,null,100,null,100,null,100,null,{"$f":"SUM(tabulaIzdevumuKategorija_08[[#This Row],[jan]:[dec]])","v":500},{"$f":"tabulaIzdevumuKategorija_08[[#This Row],[gads]]/12","v":{"v":41.666666666666664,"d":"42"}}]
[null,"Cits",{"$nulls":3},100,{"$nulls":3},100,{"$nulls":3},100,{"$f":"SUM(tabulaIzdevumuKategorija_08[[#This Row],[jan]:[dec]])","v":300},{"$f":"tabulaIzdevumuKategorija_08[[#This Row],[gads]]/12","v":25}]
[null,{"$f":"UPPER(\"Kopā \" & B78)","v":"KOPĀ LABDARĪBA"},{"$f":"SUM(tabulaIzdevumuKategorija_08[jan])","v":0},{"$f":"SUM(tabulaIzdevumuKategorija_08[feb])","v":100},{"$f":"SUM(tabulaIzdevumuKategorija_08[mar])","v":100},{"$f":"SUM(tabulaIzdevumuKategorija_08[apr])","v":100},{"$f":"SUM(tabulaIzdevumuKategorija_08[mai])","v":100},{"$f":"SUM(tabulaIzdevumuKategorija_08[jūn])","v":100},{"$f":"SUM(tabulaIzdevumuKategorija_08[jūl])","v":100},{"$f":"SUM(tabulaIzdevumuKategorija_08[aug])","v":100},{"$f":"SUM(tabulaIzdevumuKategorija_08[sep])","v":100},{"$f":"SUM(tabulaIzdevumuKategorija_08[okt])","v":100},{"$f":"SUM(tabulaIzdevumuKategorija_08[nov])","v":100},{"$f":"SUM(tabulaIzdevumuKategorija_08[dec])","v":100},{"$f":"SUM(tabulaIzdevumuKategorija_08[gads])","v":1100},{"$f":"tabulaIzdevumuKategorija_07[[#Totals],[gads]]/12","v":{"v":104.16666666666667,"d":"104"}}]
[]
[]
[null,"ietaupījumi"]
[null,"Uzkrājumi ārkārtas gadījumiem",100,100,100,100,100,{"$nulls":3},100,100,100,100,{"$f":"SUM(tabulaIzdevumuKategorija_09[[#This Row],[jan]:[dec]])","v":900},{"$f":"tabulaIzdevumuKategorija_09[[#This Row],[gads]]/12","v":75}]
[null,"Aiziešana pensijā (401k, IPK)",500,500,500,500,500,500,500,500,500,500,500,500,{"$f":"SUM(tabulaIzdevumuKategorija_09[[#This Row],[jan]:[dec]])","v":6000},{"$f":"tabulaIzdevumuKategorija_09[[#This Row],[gads]]/12","v":500}]
[null,"Pārskaitījums ietaupījumiem",200,200,200,200,200,{"$nulls":3},200,200,200,200,{"$f":"SUM(tabulaIzdevumuKategorija_09[[#This Row],[jan]:[dec]])","v":1800},{"$f":"tabulaIzdevumuKategorija_09[[#This Row],[gads]]/12","v":150}]
[null,{"$f":"UPPER(\"Kopā \" & B85)","v":"KOPĀ IETAUPĪJUMI"},{"$f":"SUM(tabulaIzdevumuKategorija_09[jan])","v":800},{"$f":"SUM(tabulaIzdevumuKategorija_09[feb])","v":800},{"$f":"SUM(tabulaIzdevumuKategorija_09[mar])","v":800},{"$f":"SUM(tabulaIzdevumuKategorija_09[apr])","v":800},{"$f":"SUM(tabulaIzdevumuKategorija_09[mai])","v":800},{"$f":"SUM(tabulaIzdevumuKategorija_09[jūn])","v":500},{"$f":"SUM(tabulaIzdevumuKategorija_09[jūl])","v":500},{"$f":"SUM(tabulaIzdevumuKategorija_09[aug])","v":500},{"$f":"SUM(tabulaIzdevumuKategorija_09[sep])","v":800},{"$f":"SUM(tabulaIzdevumuKategorija_09[okt])","v":800},{"$f":"SUM(tabulaIzdevumuKategorija_09[nov])","v":800},{"$f":"SUM(tabulaIzdevumuKategorija_09[dec])","v":800},{"$f":"SUM(tabulaIzdevumuKategorija_09[gads])","v":8700},{"$f":"tabulaIzdevumuKategorija_08[[#Totals],[gads]]/12","v":{"v":91.66666666666667,"d":"92"}}]
[]
[]
[null,"saistības"]
[null,"1. kredītkarte",145,145,145,145,145,145,145,145,145,145,145,145,{"$f":"SUM(tabulaIzdevumuKategorija_10[[#This Row],[jan]:[dec]])","v":1740},{"$f":"tabulaIzdevumuKategorija_10[[#This Row],[gads]]/12","v":145}]
[null,"Federālie nodokļi",450,null,null,450,null,null,450,null,null,450,null,null,{"$f":"SUM(tabulaIzdevumuKategorija_10[[#This Row],[jan]:[dec]])","v":1800},{"$f":"tabulaIzdevumuKategorija_10[[#This Row],[gads]]/12","v":150}]
[null,"Studiju aizdevums",55,55,55,55,55,55,55,55,55,55,55,55,{"$f":"SUM(tabulaIzdevumuKategorija_10[[#This Row],[jan]:[dec]])","v":660},{"$f":"tabulaIzdevumuKategorija_10[[#This Row],[gads]]/12","v":55}]
[null,{"$f":"UPPER(\"Kopā \" & B92)","v":"KOPĀ SAISTĪBAS"},{"$f":"SUM(tabulaIzdevumuKategorija_10[jan])","v":650},{"$f":"SUM(tabulaIzdevumuKategorija_10[feb])","v":200},{"$f":"SUM(tabulaIzdevumuKategorija_10[mar])","v":200},{"$f":"SUM(tabulaIzdevumuKategorija_10[apr])","v":650},{"$f":"SUM(tabulaIzdevumuKategorija_10[mai])","v":200},{"$f":"SUM(tabulaIzdevumuKategorija_10[jūn])","v":200},{"$f":"SUM(tabulaIzdevumuKategorija_10[jūl])","v":650},{"$f":"SUM(tabulaIzdevumuKategorija_10[aug])","v":200},{"$f":"SUM(tabulaIzdevumuKategorija_10[sep])","v":200},{"$f":"SUM(tabulaIzdevumuKategorija_10[okt])","v":650},{"$f":"SUM(tabulaIzdevumuKategorija_10[nov])","v":200},{"$f":"SUM(tabulaIzdevumuKategorija_10[dec])","v":200},{"$f":"SUM(tabulaIzdevumuKategorija_10[gads])","v":4200},{"$f":"tabulaIzdevumuKategorija_10[[#Totals],[gads]]/12","v":350}]
[]
[]
[null," "]
[{"$nulls":14},{"$f":"SUM(tabulaIzdevumuKategorija_11[[#This Row],[jan]:[dec]])","v":0},{"$f":"tabulaIzdevumuKategorija_11[[#This Row],[gads]]/12","v":0}]
[{"$nulls":14},{"$f":"SUM(tabulaIzdevumuKategorija_11[[#This Row],[jan]:[dec]])","v":0},{"$f":"tabulaIzdevumuKategorija_11[[#This Row],[gads]]/12","v":0}]
[{"$nulls":14},{"$f":"SUM(tabulaIzdevumuKategorija_11[[#This Row],[jan]:[dec]])","v":0},{"$f":"tabulaIzdevumuKategorija_11[[#This Row],[gads]]/12","v":0}]
[null,{"$f":"UPPER(\"Kopā \" & B99)","v":"KOPĀ  "},{"$f":"SUM(tabulaIzdevumuKategorija_11[jan])","v":0},{"$f":"SUM(tabulaIzdevumuKategorija_11[feb])","v":0},{"$f":"SUM(tabulaIzdevumuKategorija_11[mar])","v":0},{"$f":"SUM(tabulaIzdevumuKategorija_11[apr])","v":0},{"$f":"SUM(tabulaIzdevumuKategorija_11[mai])","v":0},{"$f":"SUM(tabulaIzdevumuKategorija_11[jūn])","v":0},{"$f":"SUM(tabulaIzdevumuKategorija_11[jūl])","v":0},{"$f":"SUM(tabulaIzdevumuKategorija_11[aug])","v":0},{"$f":"SUM(tabulaIzdevumuKategorija_11[sep])","v":0},{"$f":"SUM(tabulaIzdevumuKategorija_11[okt])","v":0},{"$f":"SUM(tabulaIzdevumuKategorija_11[nov])","v":0},{"$f":"SUM(tabulaIzdevumuKategorija_11[dec])","v":0},{"$f":"SUM(tabulaIzdevumuKategorija_11[gads])","v":0},{"$f":"tabulaIzdevumuKategorija_11[[#Totals],[gads]]/12","v":0}]
[]
[]
[null," "]
[{"$nulls":14},{"$f":"SUM(tabulaIzdevumuKategorija_12[[#This Row],[jan]:[dec]])","v":0},{"$f":"tabulaIzdevumuKategorija_12[[#This Row],[gads]]/12","v":0}]
[{"$nulls":14},{"$f":"SUM(tabulaIzdevumuKategorija_12[[#This Row],[jan]:[dec]])","v":0},{"$f":"tabulaIzdevumuKategorija_12[[#This Row],[gads]]/12","v":0}]
[{"$nulls":14},{"$f":"SUM(tabulaIzdevumuKategorija_12[[#This Row],[jan]:[dec]])","v":0},{"$f":"tabulaIzdevumuKategorija_12[[#This Row],[gads]]/12","v":0}]
[null,{"$f":"UPPER(\"Kopā \" & B106)","v":"KOPĀ  "},{"$f":"SUM(tabulaIzdevumuKategorija_12[jan])","v":0},{"$f":"SUM(tabulaIzdevumuKategorija_12[feb])","v":0},{"$f":"SUM(tabulaIzdevumuKategorija_12[mar])","v":0},{"$f":"SUM(tabulaIzdevumuKategorija_12[apr])","v":0},{"$f":"SUM(tabulaIzdevumuKategorija_12[mai])","v":0},{"$f":"SUM(tabulaIzdevumuKategorija_12[jūn])","v":0},{"$f":"SUM(tabulaIzdevumuKategorija_12[jūl])","v":0},{"$f":"SUM(tabulaIzdevumuKategorija_12[aug])","v":0},{"$f":"SUM(tabulaIzdevumuKategorija_12[sep])","v":0},{"$f":"SUM(tabulaIzdevumuKategorija_12[okt])","v":0},{"$f":"SUM(tabulaIzdevumuKategorija_12[nov])","v":0},{"$f":"SUM(tabulaIzdevumuKategorija_12[dec])","v":0},{"$f":"SUM(tabulaIzdevumuKategorija_12[gads])","v":0},{"$f":"tabulaIzdevumuKategorija_12[[#Totals],[gads]]/12","v":0}]
[]
[]
[null," "]
[{"$nulls":14},{"$f":"SUM(tabulaIzdevumuKategorija_13[[#This Row],[jan]:[dec]])","v":0},{"$f":"tabulaIzdevumuKategorija_13[[#This Row],[gads]]/12","v":0}]
[{"$nulls":14},{"$f":"SUM(tabulaIzdevumuKategorija_13[[#This Row],[jan]:[dec]])","v":0},{"$f":"tabulaIzdevumuKategorija_13[[#This Row],[gads]]/12","v":0}]
[{"$nulls":14},{"$f":"SUM(tabulaIzdevumuKategorija_13[[#This Row],[jan]:[dec]])","v":0},{"$f":"tabulaIzdevumuKategorija_13[[#This Row],[gads]]/12","v":0}]
[null,{"$f":"UPPER(\"Kopā \" & B113)","v":"KOPĀ  "},{"$f":"SUM(tabulaIzdevumuKategorija_13[jan])","v":0},{"$f":"SUM(tabulaIzdevumuKategorija_13[feb])","v":0},{"$f":"SUM(tabulaIzdevumuKategorija_13[mar])","v":0},{"$f":"SUM(tabulaIzdevumuKategorija_13[apr])","v":0},{"$f":"SUM(tabulaIzdevumuKategorija_13[mai])","v":0},{"$f":"SUM(tabulaIzdevumuKategorija_13[jūn])","v":0},{"$f":"SUM(tabulaIzdevumuKategorija_13[jūl])","v":0},{"$f":"SUM(tabulaIzdevumuKategorija_13[aug])","v":0},{"$f":"SUM(tabulaIzdevumuKategorija_13[sep])","v":0},{"$f":"SUM(tabulaIzdevumuKategorija_13[okt])","v":0},{"$f":"SUM(tabulaIzdevumuKategorija_13[nov])","v":0},{"$f":"SUM(tabulaIzdevumuKategorija_13[dec])","v":0},{"$f":"SUM(tabulaIzdevumuKategorija_13[gads])","v":0},{"$f":"tabulaIzdevumuKategorija_11[[#Totals],[gads]]/12","v":0}]
[]
[]
[]
[null," "]
[{"$nulls":14},{"$f":"SUM(tabulaIzdevumuKategorija_14[[#This Row],[jan]:[dec]])","v":0},{"$f":"tabulaIzdevumuKategorija_14[[#This Row],[gads]]/12","v":0}]
[{"$nulls":14},{"$f":"SUM(tabulaIzdevumuKategorija_14[[#This Row],[jan]:[dec]])","v":0},{"$f":"tabulaIzdevumuKategorija_14[[#This Row],[gads]]/12","v":0}]
[{"$nulls":14},{"$f":"SUM(tabulaIzdevumuKategorija_14[[#This Row],[jan]:[dec]])","v":0},{"$f":"tabulaIzdevumuKategorija_14[[#This Row],[gads]]/12","v":0}]
[null,{"$f":"UPPER(\"Kopā \" & B121)","v":"KOPĀ  "},{"$f":"SUM(tabulaIzdevumuKategorija_14[jan])","v":0},{"$f":"SUM(tabulaIzdevumuKategorija_14[feb])","v":0},{"$f":"SUM(tabulaIzdevumuKategorija_14[mar])","v":0},{"$f":"SUM(tabulaIzdevumuKategorija_14[apr])","v":0},{"$f":"SUM(tabulaIzdevumuKategorija_14[mai])","v":0},{"$f":"SUM(tabulaIzdevumuKategorija_14[jūn])","v":0},{"$f":"SUM(tabulaIzdevumuKategorija_14[jūl])","v":0},{"$f":"SUM(tabulaIzdevumuKategorija_14[aug])","v":0},{"$f":"SUM(tabulaIzdevumuKategorija_14[sep])","v":0},{"$f":"SUM(tabulaIzdevumuKategorija_14[okt])","v":0},{"$f":"SUM(tabulaIzdevumuKategorija_14[nov])","v":0},{"$f":"SUM(tabulaIzdevumuKategorija_14[dec])","v":0},{"$f":"SUM(tabulaIzdevumuKategorija_14[gads])","v":0},{"$f":"tabulaIzdevumuKategorija_11[[#Totals],[gads]]/12","v":0}]
[]
[]
[null," "]
[{"$nulls":14},{"$f":"SUM(tabulaIzdevumuKategorija_16[[#This Row],[jan]:[dec]])","v":0},{"$f":"tabulaIzdevumuKategorija_16[[#This Row],[gads]]/12","v":0}]
[{"$nulls":14},{"$f":"SUM(tabulaIzdevumuKategorija_16[[#This Row],[jan]:[dec]])","v":0},{"$f":"tabulaIzdevumuKategorija_16[[#This Row],[gads]]/12","v":0}]
[{"$nulls":14},{"$f":"SUM(tabulaIzdevumuKategorija_16[[#This Row],[jan]:[dec]])","v":0},{"$f":"tabulaIzdevumuKategorija_16[[#This Row],[gads]]/12","v":0}]
[null,{"$f":"UPPER(\"Kopā \" & B128)","v":"KOPĀ  "},{"$f":"SUM(tabulaIzdevumuKategorija_16[jan])","v":0},{"$f":"SUM(tabulaIzdevumuKategorija_16[feb])","v":0},{"$f":"SUM(tabulaIzdevumuKategorija_16[mar])","v":0},{"$f":"SUM(tabulaIzdevumuKategorija_16[apr])","v":0},{"$f":"SUM(tabulaIzdevumuKategorija_16[mai])","v":0},{"$f":"SUM(tabulaIzdevumuKategorija_16[jūn])","v":0},{"$f":"SUM(tabulaIzdevumuKategorija_16[jūl])","v":0},{"$f":"SUM(tabulaIzdevumuKategorija_16[aug])","v":0},{"$f":"SUM(tabulaIzdevumuKategorija_16[sep])","v":0},{"$f":"SUM(tabulaIzdevumuKategorija_16[okt])","v":0},{"$f":"SUM(tabulaIzdevumuKategorija_16[nov])","v":0},{"$f":"SUM(tabulaIzdevumuKategorija_16[dec])","v":0},{"$f":"SUM(tabulaIzdevumuKategorija_16[gads])","v":0},{"$f":"tabulaIzdevumuKategorija_11[[#Totals],[gads]]/12","v":0}]

{"sheet":"Iestatīšana","index":2,"n_rows":59,"n_cols":10,"rows_kept":59}
[null,"KALNIŅU ĢIMENE 2012. G."]
[null,"ienākumi",null,"izdevumi"]
[null,"algas un dzeramnaudas",null," "]
[null,"procentu ienākumi",null,"mājoklis",null,"mājoklis",null,"ikdienas tēriņi",null,"bērni"]
[null,"dividendes",null,"ikdienas tēriņi",null,"hipotēka/īre",null,"pārtika",null,"medicīna"]
[null,"saņemtās dāvanas",null,"bērni",null,"elektrība",null,"higiēnas preces",null,"apģērbs"]
[null,"atmaksas/kompensācijas",null,"transports",null,"degviela",null,"apģērbs",null,"privātstundas"]
[null,"pārskaitījums no ietaupījumiem",null,"veselība",null,"ūdens/kanalizācija/atkritumi",null,"tīrīšanas pakalpojumi",null,"pusdienas skolā"]
[null,"cits",null,"apdrošināšana",null,"tālrunis",null,"ēdienreizes ārpus mājām",null,"materiāli skolai"]
[{"$nulls":3},"izglītība",null,"kabelis/satelīts",null,"ķīmiskā tīrītava",null,"bērnu pieskatīšana"]
[{"$nulls":3},"labdarība",null,"internets",null,"frizieris",null,"rotaļlietas/spēles"]
[{"$nulls":3},"ietaupījumi",null,"mēbeles/iekārtas",null,"cits",null,"cits"]
[{"$nulls":3},"saistības",null,"mauriņš/dārzs"]
[{"$nulls":3},"izklaide",null,"saimniecības preces"]
[{"$nulls":3},"mājdzīvnieki",null,"apkope"]
[{"$nulls":3},"abonementi",null,"uzlabojumi"]
[{"$nulls":3},"atvaļinājums",null,"cits"]
[{"$nulls":3},"dažādi"]
[]
[{"$nulls":5},"transports",null,"veselība",null,"apdrošināšana"]
[{"$nulls":5},"maksājumi par transportlīdzekli",null,"ārsts/zobārsts",null,"auto"]
[{"$nulls":5},"degviela",null,"zāles",null,"veselība"]
[{"$nulls":5},"autobusa/taksometra/vilciena biļetes",null,"sporta klubs",null,"mājoklis/īre"]
[{"$nulls":5},"remonts",null,"ārkārtas",null,"dzīvība"]
[{"$nulls":5},"reģistrēšana/licence",null,"cits",null,"cits"]
[{"$nulls":5},"cits"]
[]
[]
[{"$nulls":5},"izglītība",null,"labdarība",null,"ietaupījumi"]
[{"$nulls":5},"privātstundas",null,"pasniegtās dāvanas",null,"uzkrājumi ārkārtas gadījumiem"]
[{"$nulls":5},"grāmatas",null,"ziedojumi labdarībai",null,"pārskaitījums ietaupījumiem"]
[{"$nulls":5},"mūzikas stundas",null,"ar reliģiju saistīti ziedojumi",null,"aiziešana pensijā (401k, IPK)"]
[{"$nulls":5},"cits",null,"cits",null,"investīcijas"]
[{"$nulls":9},"koledža"]
[{"$nulls":9},"cits"]
[]
[]
[{"$nulls":5},"saistības",null,"izklaide",null,"mājdzīvnieki"]
[{"$nulls":5},"studiju aizdevums",null,"video/dvd",null,"pārtika"]
[{"$nulls":5},"cits aizdevums",null,"mūzika",null,"medicīna"]
[{"$nulls":5},"1. kredītkarte",null,"spēles",null,"rotaļlietas/materiāli"]
[{"$nulls":5},"2. kredītkarte",null,"noma",null,"cits"]
[{"$nulls":5},"3. kredītkarte",null,"kino/teātris"]
[{"$nulls":5},"alimenti/atbalsts bērniem",null,"koncerti/izrādes"]
[{"$nulls":5},"federālie nodokļi",null,"grāmatas"]
[{"$nulls":5},"īpašuma nodoklis",null,"hobiji"]
[{"$nulls":5},"vietējie nodokļi",null,"filmēšana/fotografēšana"]
[{"$nulls":5},"māju īpašnieku biedrības maksājumi",null,"sports"]
[{"$nulls":5},"juridiski izdevumi",null,"atpūta pie dabas"]
[{"$nulls":5},"cits",null,"rotaļlietas/ierīces"]
[{"$nulls":7},"cits"]
[]
[{"$nulls":5},"abonementi",null,"atvaļinājums",null,"dažādi"]
[{"$nulls":5},"laikraksti",null,"ceļošana",null,"banku komisijas maksas"]
[{"$nulls":5},"žurnāli",null,"naktsmītnes",null,"pasts"]
[{"$nulls":5},"nodevas",null,"pārtika",null,"cits"]
[{"$nulls":5},"dalības maksa klubos",null,"automašīnas noma"]
[{"$nulls":5},"cits",null,"izklaide"]
[{"$nulls":7},"cits"]

{"sheet":"diagrammas dati","index":3,"n_rows":40,"n_cols":16,"rows_kept":40,"hidden":true}
[null,"*** Šai lapai jāpaliek slēptai***"]
[]
[]
[null,"Periods",1]
[]
[null,null,"jan","feb","mar","apr","mai","jūn","jūl","aug","sep","okt","nov","dec","gads","Vid"]
[null,{"$f":"LOWER(Budžets!B128)","v":" "},{"$f":"SUM(tabulaIzdevumuKategorija_16[jan])","v":0},{"$f":"SUM(tabulaIzdevumuKategorija_16[feb])","v":0},{"$f":"SUM(tabulaIzdevumuKategorija_16[mar])","v":0},{"$f":"SUM(tabulaIzdevumuKategorija_16[apr])","v":0},{"$f":"SUM(tabulaIzdevumuKategorija_16[mai])","v":0},{"$f":"SUM(tabulaIzdevumuKategorija_16[jūn])","v":0},{"$f":"SUM(tabulaIzdevumuKategorija_16[jūl])","v":0},{"$f":"SUM(tabulaIzdevumuKategorija_16[aug])","v":0},{"$f":"SUM(tabulaIzdevumuKategorija_16[sep])","v":0},{"$f":"SUM(tabulaIzdevumuKategorija_16[okt])","v":0},{"$f":"SUM(tabulaIzdevumuKategorija_16[nov])","v":0},{"$f":"SUM(tabulaIzdevumuKategorija_16[dec])","v":0},{"$f":"SUM(tabulaIzdevumuKategorija_16[gads])","v":0},{"$f":"SUM(tabulaIzdevumuKategorija_16[vid])","v":0}]
[null,{"$f":"LOWER(Budžets!B121)","v":" "},{"$f":"SUM(tabulaIzdevumuKategorija_14[jan])","v":0},{"$f":"SUM(tabulaIzdevumuKategorija_14[feb])","v":0},{"$f":"SUM(tabulaIzdevumuKategorija_14[mar])","v":0},{"$f":"SUM(tabulaIzdevumuKategorija_14[apr])","v":0},{"$f":"SUM(tabulaIzdevumuKategorija_14[mai])","v":0},{"$f":"SUM(tabulaIzdevumuKategorija_14[jūn])","v":0},{"$f":"SUM(tabulaIzdevumuKategorija_14[jūl])","v":0},{"$f":"SUM(tabulaIzdevumuKategorija_14[aug])","v":0},{"$f":"SUM(tabulaIzdevumuKategorija_14[sep])","v":0},{"$f":"SUM(tabulaIzdevumuKategorija_14[okt])","v":0},{"$f":"SUM(tabulaIzdevumuKategorija_14[nov])","v":0},{"$f":"SUM(tabulaIzdevumuKategorija_14[dec])","v":0},{"$f":"SUM(tabulaIzdevumuKategorija_14[gads])","v":0},{"$f":"SUM(tabulaIzdevumuKategorija_14[vid])","v":0}]
[null,{"$f":"LOWER(Budžets!B113)","v":" "},{"$f":"SUM(tabulaIzdevumuKategorija_13[jan])","v":0},{"$f":"SUM(tabulaIzdevumuKategorija_13[feb])","v":0},{"$f":"SUM(tabulaIzdevumuKategorija_13[mar])","v":0},{"$f":"SUM(tabulaIzdevumuKategorija_13[apr])","v":0},{"$f":"SUM(tabulaIzdevumuKategorija_13[mai])","v":0},{"$f":"SUM(tabulaIzdevumuKategorija_13[jūn])","v":0},{"$f":"SUM(tabulaIzdevumuKategorija_13[jūl])","v":0},{"$f":"SUM(tabulaIzdevumuKategorija_13[aug])","v":0},{"$f":"SUM(tabulaIzdevumuKategorija_13[sep])","v":0},{"$f":"SUM(tabulaIzdevumuKategorija_13[okt])","v":0},{"$f":"SUM(tabulaIzdevumuKategorija_13[nov])","v":0},{"$f":"SUM(tabulaIzdevumuKategorija_13[dec])","v":0},{"$f":"SUM(tabulaIzdevumuKategorija_13[gads])","v":0},{"$f":"SUM(tabulaIzdevumuKategorija_13[vid])","v":0}]
[null,{"$f":"LOWER(Budžets!B106)","v":" "},{"$f":"SUM(tabulaIzdevumuKategorija_12[jan])","v":0},{"$f":"SUM(tabulaIzdevumuKategorija_12[feb])","v":0},{"$f":"SUM(tabulaIzdevumuKategorija_12[mar])","v":0},{"$f":"SUM(tabulaIzdevumuKategorija_12[apr])","v":0},{"$f":"SUM(tabulaIzdevumuKategorija_12[mai])","v":0},{"$f":"SUM(tabulaIzdevumuKategorija_12[jūn])","v":0},{"$f":"SUM(tabulaIzdevumuKategorija_12[jūl])","v":0},{"$f":"SUM(tabulaIzdevumuKategorija_12[aug])","v":0},{"$f":"SUM(tabulaIzdevumuKategorija_12[sep])","v":0},{"$f":"SUM(tabulaIzdevumuKategorija_12[okt])","v":0},{"$f":"SUM(tabulaIzdevumuKategorija_12[nov])","v":0},{"$f":"SUM(tabulaIzdevumuKategorija_12[dec])","v":0},{"$f":"SUM(tabulaIzdevumuKategorija_12[gads])","v":0},{"$f":"SUM(tabulaIzdevumuKategorija_12[vid])","v":0}]
[null,{"$f":"LOWER(Budžets!B99)","v":" "},{"$f":"SUM(tabulaIzdevumuKategorija_11[jan])","v":0},{"$f":"SUM(tabulaIzdevumuKategorija_11[feb])","v":0},{"$f":"SUM(tabulaIzdevumuKategorija_11[mar])","v":0},{"$f":"SUM(tabulaIzdevumuKategorija_11[apr])","v":0},{"$f":"SUM(tabulaIzdevumuKategorija_11[mai])","v":0},{"$f":"SUM(tabulaIzdevumuKategorija_11[jūn])","v":0},{"$f":"SUM(tabulaIzdevumuKategorija_11[jūl])","v":0},{"$f":"SUM(tabulaIzdevumuKategorija_11[aug])","v":0},{"$f":"SUM(tabulaIzdevumuKategorija_11[sep])","v":0},{"$f":"SUM(tabulaIzdevumuKategorija_11[okt])","v":0},{"$f":"SUM(tabulaIzdevumuKategorija_11[nov])","v":0},{"$f":"SUM(tabulaIzdevumuKategorija_11[dec])","v":0},{"$f":"SUM(tabulaIzdevumuKategorija_11[gads])","v":0},{"$f":"SUM(tabulaIzdevumuKategorija_11[vid])","v":0}]
[null,{"$f":"LOWER(Budžets!B92)","v":"saistības"},{"$f":"SUM(tabulaIzdevumuKategorija_10[jan])","v":650},{"$f":"SUM(tabulaIzdevumuKategorija_10[feb])","v":200},{"$f":"SUM(tabulaIzdevumuKategorija_10[mar])","v":200},{"$f":"SUM(tabulaIzdevumuKategorija_10[apr])","v":650},{"$f":"SUM(tabulaIzdevumuKategorija_10[mai])","v":200},{"$f":"SUM(tabulaIzdevumuKategorija_10[jūn])","v":200},{"$f":"SUM(tabulaIzdevumuKategorija_10[jūl])","v":650},{"$f":"SUM(tabulaIzdevumuKategorija_10[aug])","v":200},{"$f":"SUM(tabulaIzdevumuKategorija_10[sep])","v":200},{"$f":"SUM(tabulaIzdevumuKategorija_10[okt])","v":650},{"$f":"SUM(tabulaIzdevumuKategorija_10[nov])","v":200},{"$f":"SUM(tabulaIzdevumuKategorija_10[dec])","v":200},{"$f":"SUM(tabulaIzdevumuKategorija_10[gads])","v":{"v":4200,"d":"4,200"}},{"$f":"SUM(tabulaIzdevumuKategorija_10[vid])","v":350}]
[null,{"$f":"LOWER(Budžets!B85)","v":"ietaupījumi"},{"$f":"SUM(tabulaIzdevumuKategorija_09[jan])","v":800},{"$f":"SUM(tabulaIzdevumuKategorija_09[feb])","v":800},{"$f":"SUM(tabulaIzdevumuKategorija_09[mar])","v":800},{"$f":"SUM(tabulaIzdevumuKategorija_09[apr])","v":800},{"$f":"SUM(tabulaIzdevumuKategorija_09[mai])","v":800},{"$f":"SUM(tabulaIzdevumuKategorija_09[jūn])","v":500},{"$f":"SUM(tabulaIzdevumuKategorija_09[jūl])","v":500},{"$f":"SUM(tabulaIzdevumuKategorija_09[aug])","v":500},{"$f":"SUM(tabulaIzdevumuKategorija_09[sep])","v":800},{"$f":"SUM(tabulaIzdevumuKategorija_09[okt])","v":800},{"$f":"SUM(tabulaIzdevumuKategorija_09[nov])","v":800},{"$f":"SUM(tabulaIzdevumuKategorija_09[dec])","v":800},{"$f":"SUM(tabulaIzdevumuKategorija_09[gads])","v":{"v":8700,"d":"8,700"}},{"$f":"SUM(tabulaIzdevumuKategorija_09[vid])","v":725}]
[null,{"$f":"LOWER(Budžets!B78)","v":"labdarība"},{"$f":"SUM(tabulaIzdevumuKategorija_08[jan])","v":0},{"$f":"SUM(tabulaIzdevumuKategorija_08[feb])","v":100},{"$f":"SUM(tabulaIzdevumuKategorija_08[mar])","v":100},{"$f":"SUM(tabulaIzdevumuKategorija_08[apr])","v":100},{"$f":"SUM(tabulaIzdevumuKategorija_08[mai])","v":100},{"$f":"SUM(tabulaIzdevumuKategorija_08[jūn])","v":100},{"$f":"SUM(tabulaIzdevumuKategorija_08[jūl])","v":100},{"$f":"SUM(tabulaIzdevumuKategorija_08[aug])","v":100},{"$f":"SUM(tabulaIzdevumuKategorija_08[sep])","v":100},{"$f":"SUM(tabulaIzdevumuKategorija_08[okt])","v":100},{"$f":"SUM(tabulaIzdevumuKategorija_08[nov])","v":100},{"$f":"SUM(tabulaIzdevumuKategorija_08[dec])","v":100},{"$f":"SUM(tabulaIzdevumuKategorija_08[gads])","v":{"v":1100,"d":"1,100"}},{"$f":"SUM(tabulaIzdevumuKategorija_08[vid])","v":{"v":91.66666666666666,"d":"92"}}]
[null,{"$f":"LOWER(Budžets!B71)","v":"izglītība"},{"$f":"SUM(tabulaIzdevumuKategorija_07[jan])","v":0},{"$f":"SUM(tabulaIzdevumuKategorija_07[feb])","v":0},{"$f":"SUM(tabulaIzdevumuKategorija_07[mar])","v":625},{"$f":"SUM(tabulaIzdevumuKategorija_07[apr])","v":0},{"$f":"SUM(tabulaIzdevumuKategorija_07[mai])","v":0},{"$f":"SUM(tabulaIzdevumuKategorija_07[jūn])","v":0},{"$f":"SUM(tabulaIzdevumuKategorija_07[jūl])","v":0},{"$f":"SUM(tabulaIzdevumuKategorija_07[aug])","v":0},{"$f":"SUM(tabulaIzdevumuKategorija_07[sep])","v":625},{"$f":"SUM(tabulaIzdevumuKategorija_07[okt])","v":0},{"$f":"SUM(tabulaIzdevumuKategorija_07[nov])","v":0},{"$f":"SUM(tabulaIzdevumuKategorija_07[dec])","v":0},{"$f":"SUM(tabulaIzdevumuKategorija_07[gads])","v":{"v":1250,"d":"1,250"}},{"$f":"SUM(tabulaIzdevumuKategorija_07[vid])","v":{"v":104.16666666666667,"d":"104"}}]
[null,{"$f":"LOWER(Budžets!B64)","v":"apdrošināšana"},{"$f":"SUM(tabulaIzdevumuKategorija_06[jan])","v":975},{"$f":"SUM(tabulaIzdevumuKategorija_06[feb])","v":975},{"$f":"SUM(tabulaIzdevumuKategorija_06[mar])","v":975},{"$f":"SUM(tabulaIzdevumuKategorija_06[apr])","v":975},{"$f":"SUM(tabulaIzdevumuKategorija_06[mai])","v":975},{"$f":"SUM(tabulaIzdevumuKategorija_06[jūn])","v":975},{"$f":"SUM(tabulaIzdevumuKategorija_06[jūl])","v":975},{"$f":"SUM(tabulaIzdevumuKategorija_06[aug])","v":975},{"$f":"SUM(tabulaIzdevumuKategorija_06[sep])","v":975},{"$f":"SUM(tabulaIzdevumuKategorija_06[okt])","v":975},{"$f":"SUM(tabulaIzdevumuKategorija_06[nov])","v":975},{"$f":"SUM(tabulaIzdevumuKategorija_06[dec])","v":975},{"$f":"SUM(tabulaIzdevumuKategorija_06[gads])","v":{"v":11700,"d":"11,700"}},{"$f":"SUM(tabulaIzdevumuKategorija_06[vid])","v":975}]
[null,{"$f":"LOWER(Budžets!B57)","v":"veselība"},{"$f":"SUM(tabulaIzdevumuKategorija_05[jan])","v":25},{"$f":"SUM(tabulaIzdevumuKategorija_05[feb])","v":60},{"$f":"SUM(tabulaIzdevumuKategorija_05[mar])","v":175},{"$f":"SUM(tabulaIzdevumuKategorija_05[apr])","v":25},{"$f":"SUM(tabulaIzdevumuKategorija_05[mai])","v":60},{"$f":"SUM(tabulaIzdevumuKategorija_05[jūn])","v":60},{"$f":"SUM(tabulaIzdevumuKategorija_05[jūl])","v":60},{"$f":"SUM(tabulaIzdevumuKategorija_05[aug])","v":25},{"$f":"SUM(tabulaIzdevumuKategorija_05[sep])","v":175},{"$f":"SUM(tabulaIzdevumuKategorija_05[okt])","v":60},{"$f":"SUM(tabulaIzdevumuKategorija_05[nov])","v":25},{"$f":"SUM(tabulaIzdevumuKategorija_05[dec])","v":25},{"$f":"SUM(tabulaIzdevumuKategorija_05[gads])","v":775},{"$f":"SUM(tabulaIzdevumuKategorija_05[vid])","v":{"v":64.58333333333334,"d":"65"}}]
[null,{"$f":"LOWER(Budžets!B48)","v":"transports"},{"$f":"SUM(tabulaIzdevumuKategorija_04[jan])","v":{"v":1110,"d":"1,110"}},{"$f":"SUM(tabulaIzdevumuKategorija_04[feb])","v":{"v":1025,"d":"1,025"}},{"$f":"SUM(tabulaIzdevumuKategorija_04[mar])","v":925},{"$f":"SUM(tabulaIzdevumuKategorija_04[apr])","v":{"v":1025,"d":"1,025"}},{"$f":"SUM(tabulaIzdevumuKategorija_04[mai])","v":{"v":1325,"d":"1,325"}},{"$f":"SUM(tabulaIzdevumuKategorija_04[jūn])","v":{"v":1200,"d":"1,200"}},{"$f":"SUM(tabulaIzdevumuKategorija_04[jūl])","v":{"v":1100,"d":"1,100"}},{"$f":"SUM(tabulaIzdevumuKategorija_04[aug])","v":{"v":1200,"d":"1,200"}},{"$f":"SUM(tabulaIzdevumuKategorija_04[sep])","v":{"v":1150,"d":"1,150"}},{"$f":"SUM(tabulaIzdevumuKategorija_04[okt])","v":{"v":1025,"d":"1,025"}},{"$f":"SUM(tabulaIzdevumuKategorija_04[nov])","v":925},{"$f":"SUM(tabulaIzdevumuKategorija_04[dec])","v":925},{"$f":"SUM(tabulaIzdevumuKategorija_04[gads])","v":{"v":12935,"d":"12,935"}},{"$f":"SUM(tabulaIzdevumuKategorija_04[vid])","v":{"v":1077.9166666666665,"d":"1,078"}}]
[null,{"$f":"LOWER(Budžets!B39)","v":"bērni"},{"$f":"SUM(tabulaIzdevumuKategorija_03[jan])","v":{"v":2373,"d":"2,373"}},{"$f":"SUM(tabulaIzdevumuKategorija_03[feb])","v":500},{"$f":"SUM(tabulaIzdevumuKategorija_03[mar])","v":350},{"$f":"SUM(tabulaIzdevumuKategorija_03[apr])","v":250},{"$f":"SUM(tabulaIzdevumuKategorija_03[mai])","v":350},{"$f":"SUM(tabulaIzdevumuKategorija_03[jūn])","v":450},{"$f":"SUM(tabulaIzdevumuKategorija_03[jūl])","v":200},{"$f":"SUM(tabulaIzdevumuKategorija_03[aug])","v":545},{"$f":"SUM(tabulaIzdevumuKategorija_03[sep])","v":350},{"$f":"SUM(tabulaIzdevumuKategorija_03[okt])","v":350},{"$f":"SUM(tabulaIzdevumuKategorija_03[nov])","v":250},{"$f":"SUM(tabulaIzdevumuKategorija_03[dec])","v":350},{"$f":"SUM(tabulaIzdevumuKategorija_03[gads])","v":{"v":6318,"d":"6,318"}},{"$f":"SUM(tabulaIzdevumuKategorija_03[vid])","v":{"v":526.5,"d":"527"}}]
[null,{"$f":"LOWER(Budžets!B30)","v":"ikdienas tēriņi"},{"$f":"SUM(tabulaIzdevumuKategorija_02[jan])","v":795},{"$f":"SUM(tabulaIzdevumuKategorija_02[feb])","v":375},{"$f":"SUM(tabulaIzdevumuKategorija_02[mar])","v":550},{"$f":"SUM(tabulaIzdevumuKategorija_02[apr])","v":825},{"$f":"SUM(tabulaIzdevumuKategorija_02[mai])","v":500},{"$f":"SUM(tabulaIzdevumuKategorija_02[jūn])","v":450},{"$f":"SUM(tabulaIzdevumuKategorija_02[jūl])","v":875},{"$f":"SUM(tabulaIzdevumuKategorija_02[aug])","v":475},{"$f":"SUM(tabulaIzdevumuKategorija_02[sep])","v":400},{"$f":"SUM(tabulaIzdevumuKategorija_02[okt])","v":825},{"$f":"SUM(tabulaIzdevumuKategorija_02[nov])","v":575},{"$f":"SUM(tabulaIzdevumuKategorija_02[dec])","v":375},{"$f":"SUM(tabulaIzdevumuKategorija_02[gads])","v":{"v":7020,"d":"7,020"}},{"$f":"SUM(tabulaIzdevumuKategorija_02[vid])","v":585}]
[null,{"$f":"LOWER(Budžets!B21)","v":"mājoklis"},{"$f":"SUM(tabulaIzdevumuKategorija_01[jan])","v":{"v":1208,"d":"1,208"}},{"$f":"SUM(tabulaIzdevumuKategorija_01[feb])","v":{"v":1208,"d":"1,208"}},{"$f":"SUM(tabulaIzdevumuKategorija_01[mar])","v":{"v":1233,"d":"1,233"}},{"$f":"SUM(tabulaIzdevumuKategorija_01[apr])","v":{"v":1208,"d":"1,208"}},{"$f":"SUM(tabulaIzdevumuKategorija_01[mai])","v":{"v":1158,"d":"1,158"}},{"$f":"SUM(tabulaIzdevumuKategorija_01[jūn])","v":{"v":1183,"d":"1,183"}},{"$f":"SUM(tabulaIzdevumuKategorija_01[jūl])","v":{"v":1283,"d":"1,283"}},{"$f":"SUM(tabulaIzdevumuKategorija_01[aug])","v":{"v":1333,"d":"1,333"}},{"$f":"SUM(tabulaIzdevumuKategorija_01[sep])","v":{"v":1208,"d":"1,208"}},{"$f":"SUM(tabulaIzdevumuKategorija_01[okt])","v":{"v":1158,"d":"1,158"}},{"$f":"SUM(tabulaIzdevumuKategorija_01[nov])","v":{"v":1208,"d":"1,208"}},{"$f":"SUM(tabulaIzdevumuKategorija_01[dec])","v":{"v":1208,"d":"1,208"}},{"$f":"SUM(tabulaIzdevumuKategorija_01[gads])","v":{"v":14596,"d":"14,596"}},{"$f":"SUM(tabulaIzdevumuKategorija_01[vid])","v":{"v":1216.3333333333335,"d":"1,216"}}]
[]
[]
[]
[]
[null,"Kumulatīvā naudas plūsma",{"$f":"SUM(Budžets!$C$8:C$8)","v":{"v":-3714,"d":"-3,714"}},{"$f":"SUM(Budžets!$C$8:D$8)","v":76},{"$f":"SUM(Budžets!$C$8:E$8)","v":{"v":-1857,"d":"-1,857"}},{"$f":"SUM(Budžets!$C$8:F$8)","v":{"v":-3670,"d":"-3,670"}},{"$f":"SUM(Budžets!$C$8:G$8)","v":-138},{"$f":"SUM(Budžets!$C$8:H$8)","v":{"v":-3731,"d":"-3,731"}},{"$f":"SUM(Budžets!$C$8:I$8)","v":{"v":-7974,"d":"-7,974"}},{"$f":"SUM(Budžets!$C$8:J$8)","v":{"v":-6827,"d":"-6,827"}},{"$f":"SUM(Budžets!$C$8:K$8)","v":{"v":-8810,"d":"-8,810"}},{"$f":"SUM(Budžets!$C$8:L$8)","v":{"v":-10753,"d":"-10,753"}},{"$f":"SUM(Budžets!$C$8:M$8)","v":{"v":-6811,"d":"-6,811"}},{"$f":"SUM(Budžets!$C$8:N$8)","v":{"v":-7769,"d":"-7,769"}},{"$f":"SUM(Budžets!$C$8:O$8)","v":{"v":-15538,"d":"-15,538"}}]
[]
[null,"Gada naudas plūsma pozitīva",{"$f":"IF(Budžets!C$8<0,NA(),IF(Periods+2<>COLUMN(Budžets!C$8),NA(),Budžets!C$8))","v":{"$error":"#N/A"}},{"$f":"IF(Budžets!D$8<0,NA(),IF(Periods+2<>COLUMN(Budžets!D$8),NA(),Budžets!D$8))","v":{"$error":"#N/A"}},{"$f":"IF(Budžets!E$8<0,NA(),IF(Periods+2<>COLUMN(Budžets!E$8),NA(),Budžets!E$8))","v":{"$error":"#N/A"}},{"$f":"IF(Budžets!F$8<0,NA(),IF(Periods+2<>COLUMN(Budžets!F$8),NA(),Budžets!F$8))","v":{"$error":"#N/A"}},{"$f":"IF(Budžets!G$8<0,NA(),IF(Periods+2<>COLUMN(Budžets!G$8),NA(),Budžets!G$8))","v":{"$error":"#N/A"}},{"$f":"IF(Budžets!H$8<0,NA(),IF(Periods+2<>COLUMN(Budžets!H$8),NA(),Budžets!H$8))","v":{"$error":"#N/A"}},{"$f":"IF(Budžets!I$8<0,NA(),IF(Periods+2<>COLUMN(Budžets!I$8),NA(),Budžets!I$8))","v":{"$error":"#N/A"}},{"$f":"IF(Budžets!J$8<0,NA(),IF(Periods+2<>COLUMN(Budžets!J$8),NA(),Budžets!J$8))","v":{"$error":"#N/A"}},{"$f":"IF(Budžets!K$8<0,NA(),IF(Periods+2<>COLUMN(Budžets!K$8),NA(),Budžets!K$8))","v":{"$error":"#N/A"}},{"$f":"IF(Budžets!L$8<0,NA(),IF(Periods+2<>COLUMN(Budžets!L$8),NA(),Budžets!L$8))","v":{"$error":"#N/A"}},{"$f":"IF(Budžets!M$8<0,NA(),IF(Periods+2<>COLUMN(Budžets!M$8),NA(),Budžets!M$8))","v":{"$error":"#N/A"}},{"$f":"IF(Budžets!N$8<0,NA(),IF(Periods+2<>COLUMN(Budžets!N$8),NA(),Budžets!N$8))","v":{"$error":"#N/A"}},{"$f":"IF(Budžets!O$8<0,NA(),IF(Periods+2<>COLUMN(Budžets!O$8),NA(),Budžets!O$8))","v":{"$error":"#N/A"}}]
[null,"Gada naudas plūsma negatīva",{"$f":"IF(Budžets!C$8>=0,NA(),IF(Periods+2<>COLUMN(Budžets!C$8),NA(),Budžets!C$8))","v":{"v":-3714,"d":"-3,714"}},{"$f":"IF(Budžets!D$8>=0,NA(),IF(Periods+2<>COLUMN(Budžets!D$8),NA(),Budžets!D$8))","v":{"$error":"#N/A"}},{"$f":"IF(Budžets!E$8>=0,NA(),IF(Periods+2<>COLUMN(Budžets!E$8),NA(),Budžets!E$8))","v":{"$error":"#N/A"}},{"$f":"IF(Budžets!F$8>=0,NA(),IF(Periods+2<>COLUMN(Budžets!F$8),NA(),Budžets!F$8))","v":{"$error":"#N/A"}},{"$f":"IF(Budžets!G$8>=0,NA(),IF(Periods+2<>COLUMN(Budžets!G$8),NA(),Budžets!G$8))","v":{"$error":"#N/A"}},{"$f":"IF(Budžets!H$8>=0,NA(),IF(Periods+2<>COLUMN(Budžets!H$8),NA(),Budžets!H$8))","v":{"$error":"#N/A"}},{"$f":"IF(Budžets!I$8>=0,NA(),IF(Periods+2<>COLUMN(Budžets!I$8),NA(),Budžets!I$8))","v":{"$error":"#N/A"}},{"$f":"IF(Budžets!J$8>=0,NA(),IF(Periods+2<>COLUMN(Budžets!J$8),NA(),Budžets!J$8))","v":{"$error":"#N/A"}},{"$f":"IF(Budžets!K$8>=0,NA(),IF(Periods+2<>COLUMN(Budžets!K$8),NA(),Budžets!K$8))","v":{"$error":"#N/A"}},{"$f":"IF(Budžets!L$8>=0,NA(),IF(Periods+2<>COLUMN(Budžets!L$8),NA(),Budžets!L$8))","v":{"$error":"#N/A"}},{"$f":"IF(Budžets!M$8>=0,NA(),IF(Periods+2<>COLUMN(Budžets!M$8),NA(),Budžets!M$8))","v":{"$error":"#N/A"}},{"$f":"IF(Budžets!N$8>=0,NA(),IF(Periods+2<>COLUMN(Budžets!N$8),NA(),Budžets!N$8))","v":{"$error":"#N/A"}},{"$f":"IF(Budžets!O$8>=0,NA(),IF(Periods+2<>COLUMN(Budžets!O$8),NA(),Budžets!O$8))","v":{"$error":"#N/A"}}]
{"$rows_empty":7}
[null,{"$f":"LOWER(rādīt_ilgu_periodu)","v":"janvāris"}]
[null,{"$f":" \"Ienākumi \"& rādīt_ilgu_periodu","v":"Ienākumi janvāris"},{"$f":"INDEX(Budžets!$C$6:$P$6,,Periods)","v":{"v":4222,"d":"4,222 €"}}]
[null,{"$f":" \"Izdevumi \" & rādīt_ilgu_periodu & \": Ls \"& TEXT(INDEX(Budžets!$C$7:$P$7,,Periods),\"# ##0\")","v":"Izdevumi janvāris: Ls 7 936"},{"$f":"INDEX(Budžets!$C$7:$P$7,,Periods)","v":{"v":7936,"d":"7,936 €"}}]
[null,{"$f":"\"Naudas plūsma \" & rādīt_ilgu_periodu","v":"Naudas plūsma janvāris"},{"$f":"ABS(INDEX(Budžets!$C$8:$P$8,,Periods))","v":{"v":3714,"d":"3,714 €"}},{"$f":"REPT(\"-\",INDEX(Budžets!$C$8:$P$8,,Periods)<0)","v":"-"}]